[Event "World Prestigious University 2019"]
[Site "Tianjin"]
[Date "2019.11.27"]
[Round "5.16"]
[White "Green, Michael L"]
[Black "Wang, Yue"]
[Result "0-1"]
[WhiteElo "2073"]
[BlackElo "2674"]
[PlyCount "66"]
[EventDate "2019.11.26"]
[EventType "team-tourn"]
[EventCountry "CHN"]
[TimeControl "1500+10"]
[WhiteClock "0:14:29"]
[BlackClock "0:05:00"]

1. c3 {[%emt 0:00:00]} Nf6 {[%emt 0:00:04]} 2. Na3 {[%emt 0:00:00]} e5 {[%emt 0:00:47]} 3. Nc2 {[%emt 0:00:00]} d5 {[%emt 0:00:06]} 4. f3 {[%emt 0:00:00]} Bd6 {[%emt 0:00:28]} 5. g3 {[%emt 0:00:00]} O-O {[%emt 0:01:51]} 6. Nh3 {[%emt 0:00:00]} c5 {[%emt 0:00:24]} 7. Nf2 {[%emt 0:01:13]} Nc6 {[%emt 0:00:20]} 8. d3 {[%emt 0:00:19]} d4 {[%emt 0:00:40]} 9. e4 {[%emt 0:00:15]} b5 {[%emt 0:01:30]} 10. cxd4 {[%emt 0:01:32]} cxd4 {[%emt 0:01:10]} 11. Bg2 {[%emt 0:00:23]} a5 {[%emt 0:00:56]} 12. O-O {[%emt 0:00:13]} a4 {[%emt 0:00:18]} 13. f4 {[%emt 0:01:30]} b4 {[%emt 0:00:31]} 14. fxe5 {[%emt 0:01:05]} Bxe5 {[%emt 0:00:30]} 15. Bg5 {[%emt 0:00:38]} h6 {[%emt 0:01:15]} 16. Bxf6 {[%emt 0:00:22]} Qxf6 {[%emt 0:00:06]} 17. Ng4 {[%emt 0:01:49]} Qd6 {[%emt 0:00:12]} 18. Nxe5 {[%emt 0:01:23]} Nxe5 {[%emt 0:00:03]} 19. Qd2 {[%emt 0:01:09]} Rb8 {[%emt 0:00:07]} 20. a3 {[%emt 0:02:25]} bxa3 {[%emt 0:01:21]} 21. Nxa3 {[%emt 0:00:53]} Ba6 {[%emt 0:00:20]} 22. Rf5 {[%emt 0:01:34]} Nxd3 {[%emt 0:01:11]} 23. Rd5 {[%emt 0:00:15]} Qb6 {[%emt 0:00:04]} 24. Bf1 {[%emt 0:01:05]} Nb4 {[%emt 0:00:21]} 25. Qxd4 {[%emt 0:05:15]} Nxd5 {[%emt 0:00:15]} 26. Qxb6 {[%emt 0:00:16]} Rxb6 {[%emt 0:00:04]} 27. Bxa6 {[%emt 0:00:21]} Rxa6 {[%emt 0:00:03]} 28. exd5 {[%emt 0:00:03]} Rd8 {[%emt 0:00:03]} 29. Nb5 {[%emt 0:00:13]} Rb6 {[%emt 0:00:17]} 30. Nc3 {[%emt 0:00:18]} Rxb2 {[%emt 0:00:05]} 31. Rxa4 {[%emt 0:00:02]} Rc8 {[%emt 0:00:09]} 32. Nd1 {[%emt 0:00:27]} Rb1 {[%emt 0:00:20]} 33. Rd4 {[%emt 0:00:32]} Rcc1 {[%emt 0:00:09]} 0-1

[Event "World Prestigious University 2019"]
[Site "Tianjin"]
[Date "2019.11.27"]
[Round "5.17"]
[White "Li, Yankai"]
[Black "Zhong, Wei"]
[Result "1-0"]
[WhiteElo "2432"]
[BlackElo "1804"]
[PlyCount "149"]
[EventDate "2019.11.26"]
[EventType "team-tourn"]
[EventCountry "CHN"]
[TimeControl "1500+10"]
[WhiteClock "0:00:21"]
[BlackClock "0:04:13"]

1. e4 {[%emt 0:00:00]} e6 {[%emt 0:00:00]} 2. d4 {[%emt 0:00:00]} d5 {[%emt 0:00:00]} 3. exd5 {[%emt 0:00:01]} exd5 {[%emt 0:00:03]} 4. Bd3 {[%emt 0:00:01]} Bd6 {[%emt 0:00:13]} 5. Nf3 {[%emt 0:00:01]} Nf6 {[%emt 0:01:56]} 6. Qe2+ {[%emt 0:00:02]} Qe7 {[%emt 0:01:59]} 7. Qxe7+ {[%emt 0:00:02]} Bxe7 {[%emt 0:00:16]} 8. Bf4 {[%emt 0:00:02]} c6 {[%emt 0:00:54]} 9. h3 {[%emt 0:00:03]} O-O {[%emt 0:01:42]} 10. Nbd2 {[%emt 0:00:45]} Nbd7 {[%emt 0:04:08]} 11. O-O {[%emt 0:00:03]} Re8 {[%emt 0:00:26]} 12. Rfe1 {[%emt 0:00:13]} Nf8 {[%emt 0:00:22]} 13. Bh2 {[%emt 0:01:01]} Be6 {[%emt 0:02:19]} 14. Re2 {[%emt 0:00:01]} Rad8 {[%emt 0:01:45]} 15. Rae1 {[%emt 0:00:23]} Bd6 {[%emt 0:00:44]} 16. Ne5 {[%emt 0:00:01]} c5 {[%emt 0:01:51]} 17. dxc5 {[%emt 0:02:19]} Bxc5 {[%emt 0:00:26]} 18. Nb3 {[%emt 0:00:03]} Bb6 {[%emt 0:00:31]} 19. c3 {[%emt 0:00:01]} a6 {[%emt 0:00:29]} 20. Nd4 {[%emt 0:00:30]} Bxd4 {[%emt 0:01:25]} 21. cxd4 {[%emt 0:00:02]} Bc8 {[%emt 0:01:17]} 22. Rc1 {[%emt 0:00:23]} Ne6 {[%emt 0:00:34]} 23. Nf3 {[%emt 0:00:20]} Bd7 {[%emt 0:00:17]} 24. Be5 {[%emt 0:07:00]} Rc8 {[%emt 0:01:40]} 25. Rce1 {[%emt 0:00:02]} Bb5 {[%emt 0:00:50]} 26. Bxb5 {[%emt 0:00:42]} axb5 {[%emt 0:00:03]} 27. Bxf6 {[%emt 0:00:02]} gxf6 {[%emt 0:00:02]} 28. Re3 {[%emt 0:00:08]} b4 {[%emt 0:01:06]} 29. Nh4 {[%emt 0:02:31]} Ra8 {[%emt 0:01:06]} 30. a3 {[%emt 0:00:27]} bxa3 {[%emt 0:00:05]} 31. bxa3 {[%emt 0:00:01]} Ra4 {[%emt 0:00:08]} 32. Nf5 {[%emt 0:00:02]} Kf8 {[%emt 0:00:53]} 33. Rd3 {[%emt 0:05:54]} Rea8 {[%emt 0:00:17]} 34. Rb1 {[%emt 0:00:06]} Rxa3 {[%emt 0:00:29]} 35. Rxa3 {[%emt 0:00:01]} Rxa3 {[%emt 0:00:03]} 36. Rxb7 {[%emt 0:00:02]} Ra8 {[%emt 0:00:17]} 37. g4 {[%emt 0:01:39]} Nf4 {[%emt 0:00:20]} 38. Kh2 {[%emt 0:00:06]} Rd8 {[%emt 0:00:10]} 39. Nh6 {[%emt 0:00:44]} Rd6 {[%emt 0:00:13]} 40. Rxf7+ {[%emt 0:00:07]} Ke8 {[%emt 0:00:03]} 41. Rxh7 {[%emt 0:00:02]} Re6 {[%emt 0:00:12]} 42. Nf5 {[%emt 0:00:04]} Re2 {[%emt 0:00:11]} 43. Kg3 {[%emt 0:00:04]} Nd3 {[%emt 0:00:07]} 44. f3 {[%emt 0:00:01]} Re1 {[%emt 0:00:04]} 45. Ra7 {[%emt 0:01:00]} Rg1+ {[%emt 0:00:18]} 46. Kh2 {[%emt 0:00:01]} Rf1 {[%emt 0:00:07]} 47. Kg2 {[%emt 0:00:01]} Rf2+ {[%emt 0:00:03]} 48. Kg3 {[%emt 0:00:01]} Rf1 {[%emt 0:00:19]} 49. Ra3 {[%emt 0:00:04]} Rg1+ {[%emt 0:00:13]} 50. Kh2 {[%emt 0:00:01]} Rd1 {[%emt 0:00:02]} 51. h4 {[%emt 0:00:17]} Nf4 {[%emt 0:00:07]} 52. Re3+ {[%emt 0:00:08]} Kf8 {[%emt 0:00:20]} 53. Kg3 {[%emt 0:00:04]} Ng6 {[%emt 0:00:10]} 54. h5 {[%emt 0:00:01]} Nh8 {[%emt 0:00:12]} 55. Re6 {[%emt 0:00:02]} Kf7 {[%emt 0:00:09]} 56. Re7+ {[%emt 0:00:01]} Kf8 {[%emt 0:00:03]} 57. Rd7 {[%emt 0:00:03]} Nf7 {[%emt 0:00:13]} 58. h6 {[%emt 0:00:01]} Rh1 {[%emt 0:00:12]} 59. Rxd5 {[%emt 0:00:10]} Ng5 {[%emt 0:00:14]} 60. Kg2 {[%emt 0:01:03]} Ra1 {[%emt 0:00:10]} 61. Rd8+ {[%emt 0:00:02]} Kf7 {[%emt 0:00:04]} 62. Rd7+ {[%emt 0:00:01]} Kg8 {[%emt 0:00:14]} 63. f4 {[%emt 0:00:16]} Ra2+ {[%emt 0:00:04]} 64. Kf1 {[%emt 0:01:40]} Ne6 {[%emt 0:00:16]} 65. g5 {[%emt 0:00:55]} fxg5 {[%emt 0:00:13]} 66. fxg5 {[%emt 0:00:03]} Ra1+ {[%emt 0:00:07]} 67. Kf2 {[%emt 0:00:08]} Ra2+ {[%emt 0:00:10]} 68. Kg3 {[%emt 0:00:01]} Ra3+ {[%emt 0:00:07]} 69. Kg4 {[%emt 0:00:02]} Ra1 {[%emt 0:00:08]} 70. g6 {[%emt 0:00:08]} Rg1+ {[%emt 0:00:10]} 71. Ng3 {[%emt 0:00:02]} Nf8 {[%emt 0:00:18]} 72. Rd8 {[%emt 0:00:14]} Rg2 {[%emt 0:00:09]} 73. h7+ {[%emt 0:00:14]} Kg7 {[%emt 0:00:08]} 74. Rxf8 {[%emt 0:00:02]} Kxg6 {[%emt 0:00:03]} 75. h8=Q {[%emt 0:00:29]} 1-0

[Event "World Prestigious University 2019"]
[Site "Tianjin"]
[Date "2019.11.27"]
[Round "5.18"]
[White "Serbanescu, Diana-Maria"]
[Black "Xiao, Yiyi"]
[Result "0-1"]
[WhiteElo "1990"]
[BlackElo "2306"]
[PlyCount "52"]
[EventDate "2019.11.26"]
[EventType "team-tourn"]
[EventCountry "CHN"]
[TimeControl "1500+10"]
[WhiteClock "0:03:54"]
[BlackClock "0:01:01"]

1. e4 {[%emt 0:00:00]} c5 {[%emt 0:00:01]} 2. c3 {[%emt 0:00:00]} Nf6 {[%emt 0:00:42]} 3. e5 {[%emt 0:00:00]} Nd5 {[%emt 0:00:02]} 4. d4 {[%emt 0:00:00]} e6 {[%emt 0:01:35]} 5. Nf3 {[%emt 0:00:08]} cxd4 {[%emt 0:00:52]} 6. cxd4 {[%emt 0:00:03]} d6 {[%emt 0:00:10]} 7. Nc3 {[%emt 0:00:23]} Nxc3 {[%emt 0:00:33]} 8. bxc3 {[%emt 0:00:03]} Nc6 {[%emt 0:00:02]} 9. Bd3 {[%emt 0:03:16]} dxe5 {[%emt 0:02:38]} 10. dxe5 {[%emt 0:00:07]} Qa5 {[%emt 0:03:44]} 11. O-O {[%emt 0:02:12]} Nxe5 {[%emt 0:00:56]} 12. Nxe5 {[%emt 0:00:02]} Qxe5 {[%emt 0:00:02]} 13. Re1 {[%emt 0:00:01]} Qc7 {[%emt 0:04:15]} 14. Rb1 {[%emt 0:04:14]} Bd7 {[%emt 0:00:56]} 15. Qf3 {[%emt 0:03:01]} Bc6 {[%emt 0:01:19]} 16. Qh5 {[%emt 0:00:26]} g6 {[%emt 0:01:24]} 17. Qg4 {[%emt 0:00:34]} O-O-O {[%emt 0:02:11]} 18. Bf1 {[%emt 0:02:55]} Bd6 {[%emt 0:00:18]} 19. g3 {[%emt 0:01:40]} h5 {[%emt 0:00:26]} 20. Qc4 {[%emt 0:00:01]} h4 {[%emt 0:00:17]} 21. Bg2 {[%emt 0:01:11]} hxg3 {[%emt 0:01:08]} 22. hxg3 {[%emt 0:00:07]} Bxg3 {[%emt 0:01:00]} 23. fxg3 {[%emt 0:04:15]} Qxg3 {[%emt 0:00:08]} 24. Qe2 {[%emt 0:03:35]} Bxg2 {[%emt 0:00:37]} 25. Qxg2 {[%emt 0:00:03]} Qxe1+ {[%emt 0:00:03]} 26. Qf1 {[%emt 0:00:02]} Qg3+ {[%emt 0:00:07]} 0-1

[Event "World Prestigious University 2019"]
[Site "Tianjin"]
[Date "2019.11.27"]
[Round "6.1"]
[White "TannerAustin, McNamara"]
[Black "Wang, Yue"]
[Result "0-1"]
[WhiteElo "1983"]
[BlackElo "2674"]
[PlyCount "84"]
[EventDate "2019.11.26"]
[EventType "team-tourn"]
[EventCountry "CHN"]
[TimeControl "1500+10"]
[WhiteClock "0:05:09"]
[BlackClock "0:00:14"]

1. d4 {[%emt 0:00:00]} d6 {[%emt 0:00:00]} 2. Nf3 {[%emt 0:00:01]} g6 {[%emt 0:00:04]} 3. c4 {[%emt 0:00:05]} Bg7 {[%emt 0:00:14]} 4. Nc3 {[%emt 0:00:06]} e5 {[%emt 0:01:05]} 5. d5 {[%emt 0:00:59]} f5 {[%emt 0:00:36]} 6. e4 {[%emt 0:00:28]} Nf6 {[%emt 0:00:06]} 7. Bd3 {[%emt 0:00:50]} Na6 {[%emt 0:01:18]} 8. Be3 {[%emt 0:01:26]} O-O {[%emt 0:00:07]} 9. Qe2 {[%emt 0:00:21]} Qe8 {[%emt 0:07:16]} 10. O-O-O {[%emt 0:01:12]} Nh5 {[%emt 0:00:05]} 11. g3 {[%emt 0:05:58]} f4 {[%emt 0:00:14]} 12. gxf4 {[%emt 0:02:29]} Nxf4 {[%emt 0:00:04]} 13. Bxf4 {[%emt 0:00:29]} Rxf4 {[%emt 0:00:05]} 14. Rdg1 {[%emt 0:04:58]} Bg4 {[%emt 0:03:23]} 15. Rxg4 {[%emt 0:00:53]} Rxg4 {[%emt 0:00:01]} 16. Nxe5 {[%emt 0:00:15]} Rf4 {[%emt 0:00:06]} 17. Ng4 {[%emt 0:00:28]} Qf8 {[%emt 0:00:08]} 18. Nd1 {[%emt 0:00:41]} Nc5 {[%emt 0:00:14]} 19. Bc2 {[%emt 0:01:41]} Re8 {[%emt 0:00:10]} 20. e5 {[%emt 0:02:52]} Bxe5 {[%emt 0:00:18]} 21. Nxe5 {[%emt 0:00:11]} Rxe5 {[%emt 0:00:02]} 22. Qd2 {[%emt 0:00:15]} Rxc4 {[%emt 0:00:40]} 23. h4 {[%emt 0:00:23]} Rf4 {[%emt 0:01:07]} 24. h5 {[%emt 0:00:09]} Rxh5 {[%emt 0:00:10]} 25. Rxh5 {[%emt 0:00:14]} gxh5 {[%emt 0:00:02]} 26. Qc3 {[%emt 0:00:19]} Qf6 {[%emt 0:01:22]} 27. Qh3 {[%emt 0:00:14]} Qg5 {[%emt 0:00:56]} 28. Kb1 {[%emt 0:00:08]} Qg4 {[%emt 0:00:57]} 29. Qe3 {[%emt 0:00:02]} Re4 {[%emt 0:00:23]} 30. Qh6 {[%emt 0:00:54]} Re7 {[%emt 0:02:56]} 31. Qf6 {[%emt 0:00:20]} Qg7 {[%emt 0:00:20]} 32. Qf5 {[%emt 0:00:08]} Qf7 {[%emt 0:00:15]} 33. Qg5+ {[%emt 0:00:38]} Kh8 {[%emt 0:00:18]} 34. f4 {[%emt 0:00:12]} Ne4 {[%emt 0:00:27]} 35. Qh4 {[%emt 0:00:17]} Nf6 {[%emt 0:00:25]} 36. Nc3 {[%emt 0:00:07]} Re8 {[%emt 0:00:21]} 37. a3 {[%emt 0:00:04]} Rf8 {[%emt 0:00:11]} 38. Qg5 {[%emt 0:00:06]} Qg7 {[%emt 0:00:01]} 39. Qf5 {[%emt 0:00:12]} Qg4 {[%emt 0:00:02]} 40. Qe6 {[%emt 0:00:17]} Qxe6 {[%emt 0:00:12]} 41. dxe6 {[%emt 0:00:01]} h4 {[%emt 0:00:03]} 42. Bf5 {[%emt 0:00:23]} Ng8 {[%emt 0:00:07]} 0-1

[Event "World Prestigious University 2019"]
[Site "Tianjin"]
[Date "2019.11.27"]
[Round "6.2"]
[White "Li, Yankai"]
[Black "Lei, Sean"]
[Result "1-0"]
[WhiteElo "2432"]
[BlackElo "1895"]
[PlyCount "69"]
[EventDate "2019.11.26"]
[EventType "team-tourn"]
[EventCountry "CHN"]
[TimeControl "1500+10"]
[WhiteClock "0:11:44"]
[BlackClock "0:13:18"]

1. e4 {[%emt 0:00:00]} d6 {[%emt 0:00:00]} 2. d4 {[%emt 0:00:00]} Nf6 {[%emt 0:00:00]} 3. Nc3 {[%emt 0:00:00]} Nbd7 {[%emt 0:00:00]} 4. Nf3 {[%emt 0:00:00]} e5 {[%emt 0:00:00]} 5. Bc4 {[%emt 0:00:00]} Be7 {[%emt 0:00:00]} 6. a4 {[%emt 0:00:08]} c6 {[%emt 0:00:00]} 7. O-O {[%emt 0:00:24]} O-O {[%emt 0:00:02]} 8. Re1 {[%emt 0:00:26]} b6 {[%emt 0:00:05]} 9. Ba2 {[%emt 0:01:48]} a6 {[%emt 0:00:13]} 10. Bg5 {[%emt 0:01:29]} Rb8 {[%emt 0:01:17]} 11. dxe5 {[%emt 0:00:51]} dxe5 {[%emt 0:02:38]} 12. Bxf6 {[%emt 0:00:53]} Bxf6 {[%emt 0:00:03]} 13. Qd6 {[%emt 0:00:16]} Bb7 {[%emt 0:01:03]} 14. Red1 {[%emt 0:00:54]} Nc5 {[%emt 0:01:34]} 15. b4 {[%emt 0:00:06]} Qc8 {[%emt 0:00:46]} 16. Nxe5 {[%emt 0:03:12]} Ne6 {[%emt 0:07:28]} 17. Bxe6 {[%emt 0:02:55]} fxe6 {[%emt 0:00:26]} 18. Ra3 {[%emt 0:00:04]} Rd8 {[%emt 0:00:16]} 19. Nd7 {[%emt 0:00:02]} Kf7 {[%emt 0:00:35]} 20. Qxb8 {[%emt 0:00:49]} Rxd7 {[%emt 0:00:04]} 21. Qxc8 {[%emt 0:00:17]} Bxc8 {[%emt 0:00:07]} 22. Rxd7+ {[%emt 0:00:14]} Bxd7 {[%emt 0:00:02]} 23. Nd1 {[%emt 0:00:17]} Be5 {[%emt 0:00:16]} 24. Ne3 {[%emt 0:00:14]} Ke7 {[%emt 0:00:21]} 25. Nc4 {[%emt 0:01:27]} Bc7 {[%emt 0:00:02]} 26. a5 {[%emt 0:00:08]} b5 {[%emt 0:00:04]} 27. Nb6 {[%emt 0:00:01]} Be8 {[%emt 0:00:05]} 28. Rd3 {[%emt 0:00:02]} Kf6 {[%emt 0:00:26]} 29. Nd7+ {[%emt 0:00:05]} Bxd7 {[%emt 0:00:50]} 30. Rxd7 {[%emt 0:00:01]} Be5 {[%emt 0:00:01]} 31. Ra7 {[%emt 0:00:02]} Bc3 {[%emt 0:00:02]} 32. Rxa6 {[%emt 0:00:02]} Bxb4 {[%emt 0:00:03]} 33. Rxc6 {[%emt 0:00:22]} Bxa5 {[%emt 0:00:02]} 34. Rc5 {[%emt 0:00:02]} Bd2 {[%emt 0:00:05]} 35. Rxb5 {[%emt 0:00:01]} 1-0

[Event "World Prestigious University 2019"]
[Site "Tianjin"]
[Date "2019.11.27"]
[Round "6.3"]
[White "Zhou, Qiyu"]
[Black "Xiao, Yiyi"]
[Result "0-1"]
[WhiteElo "2216"]
[BlackElo "2306"]
[PlyCount "100"]
[EventDate "2019.11.26"]
[EventType "team-tourn"]
[EventCountry "CHN"]
[TimeControl "1500+10"]
[WhiteClock "0:00:38"]
[BlackClock "0:00:24"]

1. e4 {[%emt 0:00:00]} e5 {[%emt 0:00:08]} 2. Nf3 {[%emt 0:00:00]} Nc6 {[%emt 0:00:02]} 3. Bb5 {[%emt 0:00:00]} Nf6 {[%emt 0:00:07]} 4. d3 {[%emt 0:00:00]} Bc5 {[%emt 0:00:14]} 5. c3 {[%emt 0:00:00]} O-O {[%emt 0:00:27]} 6. O-O {[%emt 0:00:01]} d6 {[%emt 0:00:13]} 7. h3 {[%emt 0:00:08]} Bb6 {[%emt 0:00:30]} 8. Re1 {[%emt 0:00:13]} Ne7 {[%emt 0:00:37]} 9. Nbd2 {[%emt 0:00:27]} c6 {[%emt 0:00:41]} 10. Ba4 {[%emt 0:00:05]} Ng6 {[%emt 0:00:09]} 11. Nf1 {[%emt 0:00:08]} Nh5 {[%emt 0:03:00]} 12. d4 {[%emt 0:01:51]} h6 {[%emt 0:00:55]} 13. Be3 {[%emt 0:02:34]} Qf6 {[%emt 0:02:10]} 14. N1h2 {[%emt 0:05:38]} Nhf4 {[%emt 0:06:34]} 15. Ng4 {[%emt 0:00:11]} Qe7 {[%emt 0:00:58]} 16. Bc2 {[%emt 0:04:39]} h5 {[%emt 0:03:29]} 17. Ngh2 {[%emt 0:00:05]} Qf6 {[%emt 0:00:01]} 18. Qd2 {[%emt 0:01:21]} Re8 {[%emt 0:00:42]} 19. Rad1 {[%emt 0:00:12]} Be6 {[%emt 0:00:15]} 20. a4 {[%emt 0:01:27]} Rad8 {[%emt 0:00:18]} 21. Kh1 {[%emt 0:00:27]} Qe7 {[%emt 0:00:52]} 22. Qc1 {[%emt 0:00:33]} Bc8 {[%emt 0:00:42]} 23. b3 {[%emt 0:00:37]} Qf6 {[%emt 0:00:25]} 24. Qa1 {[%emt 0:02:02]} Bc7 {[%emt 0:01:37]} 25. c4 {[%emt 0:02:45]} Ba5 {[%emt 0:01:13]} 26. Bd2 {[%emt 0:00:22]} Bxd2 {[%emt 0:00:06]} 27. Rxd2 {[%emt 0:00:08]} exd4 {[%emt 0:01:19]} 28. Qxd4 {[%emt 0:00:17]} Ne5 {[%emt 0:00:06]} 29. Re3 {[%emt 0:00:51]} a5 {[%emt 0:01:02]} 30. Qb6 {[%emt 0:00:11]} Qg6 {[%emt 0:00:13]} 31. Ne1 {[%emt 0:00:26]} h4 {[%emt 0:00:29]} 32. Qxa5 {[%emt 0:00:06]} Be6 {[%emt 0:00:23]} 33. Qc3 {[%emt 0:00:02]} Bc8 {[%emt 0:00:20]} 34. a5 {[%emt 0:00:52]} Re6 {[%emt 0:00:09]} 35. c5 {[%emt 0:00:10]} Rde8 {[%emt 0:00:08]} 36. b4 {[%emt 0:00:54]} Qh6 {[%emt 0:00:06]} 37. Nhf3 {[%emt 0:00:41]} Nxf3 {[%emt 0:00:13]} 38. Rxf3 {[%emt 0:00:01]} d5 {[%emt 0:00:08]} 39. Qe3 {[%emt 0:00:17]} Rxe4 {[%emt 0:00:03]} 40. Bxe4 {[%emt 0:00:07]} Rxe4 {[%emt 0:00:01]} 41. Rxf4 {[%emt 0:00:23]} Rxe3 {[%emt 0:00:05]} 42. fxe3 {[%emt 0:00:01]} g5 {[%emt 0:00:13]} 43. Rf1 {[%emt 0:00:20]} Qe6 {[%emt 0:00:07]} 44. Rdf2 {[%emt 0:00:09]} Qxe3 {[%emt 0:00:25]} 45. Rxf7 {[%emt 0:00:02]} Be6 {[%emt 0:00:12]} 46. R7f3 {[%emt 0:00:22]} Qe2 {[%emt 0:00:05]} 47. Kg1 {[%emt 0:00:17]} d4 {[%emt 0:00:03]} 48. Nd3 {[%emt 0:00:23]} Bd5 {[%emt 0:00:12]} 49. Nc1 {[%emt 0:00:09]} Qd2 {[%emt 0:00:13]} 50. Rd3 {[%emt 0:00:01]} Qxg2# {[%emt 0:00:02]} 0-1

[Event "World Prestigious University 2019"]
[Site "Tianjin"]
[Date "2019.11.27"]
[Round "6.4"]
[White "Bibby, Simon"]
[Black "Green, Michael L"]
[Result "1-0"]
[WhiteElo "2167"]
[BlackElo "2073"]
[PlyCount "78"]
[EventDate "2019.11.26"]
[EventType "team-tourn"]
[EventCountry "CHN"]
[TimeControl "1500+10"]
[WhiteClock "0:00:11"]
[BlackClock "0:10:00"]

1. d4 {[%emt 0:00:00]} Nf6 {[%emt 0:00:00]} 2. Bg5 {[%emt 0:00:00]} c5 {[%emt 0:00:00]} 3. d5 {[%emt 0:00:00]} d6 {[%emt 0:00:29]} 4. Bxf6 {[%emt 0:00:53]} exf6 {[%emt 0:00:03]} 5. e4 {[%emt 0:00:26]} g6 {[%emt 0:00:07]} 6. Bb5+ {[%emt 0:01:55]} Nd7 {[%emt 0:00:29]} 7. a4 {[%emt 0:00:02]} a6 {[%emt 0:00:07]} 8. Be2 {[%emt 0:00:20]} Bg7 {[%emt 0:00:11]} 9. Nf3 {[%emt 0:00:03]} O-O {[%emt 0:00:28]} 10. O-O {[%emt 0:00:07]} f5 {[%emt 0:02:28]} 11. exf5 {[%emt 0:00:54]} Bxb2 {[%emt 0:00:03]} 12. Ra2 {[%emt 0:00:03]} Bg7 {[%emt 0:00:04]} 13. fxg6 {[%emt 0:00:12]} fxg6 {[%emt 0:00:28]} 14. Nbd2 {[%emt 0:00:23]} Nf6 {[%emt 0:01:54]} 15. Re1 {[%emt 0:02:35]} Nh5 {[%emt 0:03:06]} 16. g3 {[%emt 0:03:02]} Bc3 {[%emt 0:01:16]} 17. Ra3 {[%emt 0:00:32]} Qa5 {[%emt 0:01:52]} 18. Nc4 {[%emt 0:00:44]} Qb4 {[%emt 0:00:59]} 19. Rb3 {[%emt 0:00:05]} Bxe1 {[%emt 0:00:08]} 20. Rxb4 {[%emt 0:00:02]} Bxb4 {[%emt 0:00:03]} 21. Nxd6 {[%emt 0:00:40]} Bg4 {[%emt 0:08:02]} 22. Ng5 {[%emt 0:00:47]} Bxe2 {[%emt 0:00:58]} 23. Qxe2 {[%emt 0:00:01]} Ng7 {[%emt 0:01:12]} 24. Ne6 {[%emt 0:01:27]} Nxe6 {[%emt 0:00:25]} 25. dxe6 {[%emt 0:00:12]} c4 {[%emt 0:00:35]} 26. e7 {[%emt 0:00:47]} Bxd6 {[%emt 0:00:37]} 27. exf8=Q+ {[%emt 0:00:19]} Bxf8 {[%emt 0:00:15]} 28. Qxc4+ {[%emt 0:00:04]} Kh8 {[%emt 0:00:11]} 29. Qd5 {[%emt 0:00:13]} Rc8 {[%emt 0:00:15]} 30. c4 {[%emt 0:01:00]} b6 {[%emt 0:00:19]} 31. Qd4+ {[%emt 0:01:04]} Kg8 {[%emt 0:01:26]} 32. Qxb6 {[%emt 0:00:05]} Rc5 {[%emt 0:00:39]} 33. Qxa6 {[%emt 0:00:12]} Rf5 {[%emt 0:00:01]} 34. f4 {[%emt 0:00:13]} Bc5+ {[%emt 0:00:39]} 35. Kg2 {[%emt 0:00:02]} Kf7 {[%emt 0:00:23]} 36. Qc6 {[%emt 0:00:10]} Be7 {[%emt 0:00:07]} 37. h4 {[%emt 0:01:36]} Rc5 {[%emt 0:00:28]} 38. Qa6 {[%emt 0:00:04]} Bd8 {[%emt 0:00:22]} 39. Kf3 {[%emt 0:00:16]} Ra5 {[%emt 0:00:13]} 1-0

[Event "World Prestigious University 2019"]
[Site "Tianjin"]
[Date "2019.11.27"]
[Round "6.5"]
[White "Zhong, Wei"]
[Black "Hirao, Satoshi"]
[Result "0-1"]
[WhiteElo "1804"]
[BlackElo "1958"]
[PlyCount "79"]
[EventDate "2019.11.26"]
[EventType "team-tourn"]
[EventCountry "CHN"]
[TimeControl "1500+10"]
[WhiteClock "0:00:51"]
[BlackClock "0:00:11"]

1. e4 {[%emt 0:00:00]} e5 {[%emt 0:00:00]} 2. Nf3 {[%emt 0:00:06]} Nc6 {[%emt 0:00:00]} 3. Bc4 {[%emt 0:00:18]} Bc5 {[%emt 0:00:00]} 4. b4 {[%emt 0:02:38]} Bxb4 {[%emt 0:00:05]} 5. c3 {[%emt 0:00:07]} Ba5 {[%emt 0:00:05]} 6. d4 {[%emt 0:00:15]} exd4 {[%emt 0:00:10]} 7. O-O {[%emt 0:00:09]} Nf6 {[%emt 0:05:09]} 8. e5 {[%emt 0:04:39]} d5 {[%emt 0:01:55]} 9. Bb5 {[%emt 0:05:19]} Ne4 {[%emt 0:00:49]} 10. Qa4 {[%emt 0:06:19]} Bxc3 {[%emt 0:06:44]} 11. Nxc3 {[%emt 0:02:27]} Nxc3 {[%emt 0:03:04]} 12. Bxc6+ {[%emt 0:00:17]} bxc6 {[%emt 0:00:04]} 13. Qxc6+ {[%emt 0:00:07]} Bd7 {[%emt 0:00:16]} 14. Qc5 {[%emt 0:00:33]} Ne2+ {[%emt 0:02:39]} 15. Kh1 {[%emt 0:00:05]} Nxc1 {[%emt 0:00:16]} 16. Raxc1 {[%emt 0:00:19]} Qe7 {[%emt 0:01:33]} 17. Qxd5 {[%emt 0:01:16]} c6 {[%emt 0:00:37]} 18. Rxc6 {[%emt 0:00:49]} O-O {[%emt 0:00:13]} 19. Rd6 {[%emt 0:00:19]} Be6 {[%emt 0:00:29]} 20. Qxd4 {[%emt 0:00:09]} Bxa2 {[%emt 0:00:31]} 21. Ra1 {[%emt 0:00:41]} Be6 {[%emt 0:00:16]} 22. Rda6 {[%emt 0:00:16]} Rfd8 {[%emt 0:00:15]} 23. Qe3 {[%emt 0:00:28]} Rd7 {[%emt 0:02:08]} 24. h3 {[%emt 0:00:23]} h6 {[%emt 0:00:47]} 25. Nd4 {[%emt 0:00:25]} Bd5 {[%emt 0:00:39]} 26. Nf5 {[%emt 0:00:41]} Qg5 {[%emt 0:00:14]} 27. Qxg5 {[%emt 0:00:11]} hxg5 {[%emt 0:00:02]} 28. Kh2 {[%emt 0:00:13]} Bc4 {[%emt 0:00:20]} 29. Rd6 {[%emt 0:00:09]} Rxd6 {[%emt 0:00:06]} 30. exd6 {[%emt 0:00:04]} Be6 {[%emt 0:00:08]} 31. Ne7+ {[%emt 0:00:12]} Kf8 {[%emt 0:00:01]} 32. Nc6 {[%emt 0:00:02]} a6 {[%emt 0:00:16]} 33. Rd1 {[%emt 0:00:06]} Ke8 {[%emt 0:00:04]} 34. Kg3 {[%emt 0:00:20]} f6 {[%emt 0:00:07]} 35. h4 {[%emt 0:00:13]} gxh4+ {[%emt 0:00:04]} 36. Kxh4 {[%emt 0:00:02]} a5 {[%emt 0:00:02]} 37. Nd4 {[%emt 0:00:20]} Bd7 {[%emt 0:00:06]} 38. g4 {[%emt 0:00:04]} Ra6 {[%emt 0:00:14]} 39. Kh5 {[%emt 0:00:18]} Rxd6 {[%emt 0:00:11]} 40. f3 {[%emt 0:00:11]} 0-1